[Event "ESP-ch Teams Primera 2022"]
[Site "Sanxenxo Pontevedra"]
[Date "2022.09.17"]
[Round "1.1"]
[White "Bjerre, Jonas Buhl"]
[Black "Bacrot, Etienne"]
[Result "1-0"]
[ECO "A06"]
[WhiteElo "2598"]
[BlackElo "2647"]
[Annotator "ChessBase"]
[PlyCount "50"]
[EventDate "2022.09.17"]
[EventType "team-tourn"]
[EventCountry "ESP"]
[SourceTitle "playchess.com"]
[Source "ChessBase"]
[SourceQuality "1"]
[TimeControl "5400+30"]

1. Nf3 {[%emt 0:00:20]} d5 {[%emt 0:03:59]} 2. g3 {[%emt 0:00:26]} Nf6 {[%emt 0:01:12]} 3. Bg2 {[%emt 0:00:31]} c5 {[%emt 0:00:32]} 4. O-O {[%emt 0:01:03]} Nc6 {[%emt 0:00:09]} 5. d4 {[%emt 0:01:22]} cxd4 {[%emt 0:00:15]} 6. Nxd4 {[%emt 0:00:15]} e5 {[%emt 0:00:06]} 7. Nxc6 {[%emt 0:00:34]} bxc6 {[%emt 0:00:06]} 8. c4 {[%emt 0:00:19]} Be6 {[%emt 0:00:37]} 9. Bg5 {[%emt 0:02:06]} Rc8 {[%emt 0:17:34]} 10. Qa4 {[%emt 0:01:06]} Qd7 {[%emt 0:04:20]} 11. Bxf6 {[%emt 0:00:43]} gxf6 {[%emt 0:00:09]} 12. e3 {[%emt 0:01:12]} d4 {[%emt 0:07:40]} 13. exd4 {[%emt 0:00:15]} exd4 {[%emt 0:00:09]} 14. Nd2 {[%emt 0:00:53]} c5 {[%emt 0:05:04]} 15. Qa3 {[%emt 0:00:35]} Be7 {[%emt 0:20:47]} 16. Qd3 {[%emt 0:02:12]} O-O {[%emt 0:04:48]} 17. Rae1 {[%emt 0:09:31]} Rfe8 {[%emt 0:01:29]} 18. Re2 {[%emt 0:05:19]} Bf8 {[%emt 0:07:47]} 19. Ne4 {[%emt 0:09:38]} Kg7 {[%emt 0:05:07]} 20. Rfe1 {[%emt 0:04:56]} Bf5 {[%emt 0:03:30]} 21. Qf3 {[%emt 0:14:20]} Re5 {[%emt 0:02:46]} 22. Nxf6 {[%emt 0:09:36]} Rxe2 {[%emt 0:00:35]} 23. Nh5+ {[%emt 0:01:09]} Kh8 {[%emt 0:01:58]} 24. Rxe2 {[%emt 0:01:52]} d3 {[%emt 0:01:52]} 25. Re5 {[%emt 0:04:16]} Re8 {[%emt 0:03:03]} 1-0

[Event "ESP-ch Teams Primera 2022"]
[Site "Sanxenxo Pontevedra"]
[Date "2022.09.17"]
[Round "1.2"]
[White "Naiditsch, Arkadij"]
[Black "Andersen, Mads"]
[Result "1/2-1/2"]
[ECO "C84"]
[WhiteElo "2666"]
[BlackElo "2597"]
[Annotator "ChessBase"]
[PlyCount "104"]
[EventDate "2022.09.17"]
[EventType "team-tourn"]
[EventCountry "ESP"]
[SourceTitle "playchess.com"]
[Source "ChessBase"]
[SourceQuality "1"]
[TimeControl "5400+30"]

1. e4 e5 2. Nf3 Nc6 3. Bb5 a6 4. Ba4 Nf6 5. O-O Be7 6. d3 b5 7. Bb3 d6 8. a3 O-O 9. Nc3 Na5 10. Ba2 Be6 11. d4 Bxa2 12. Rxa2 Re8 13. Re1 h6 14. dxe5 dxe5 15. Nxe5 Qxd1 16. Rxd1 Bd6 17. f4 Bxe5 18. fxe5 Rxe5 19. Bf4 Rc5 20. h3 Nc4 21. b4 Rc6 22. e5 Nh7 23. a4 bxa4 24. Nxa4 Nf8 25. Nc5 Ne6 26. Nxe6 Rxe6 27. b5 a5 28. Rd4 Nxe5 29. Rda4 Rd8 30. Rxa5 Rd1+ 31. Kh2 g5 32. Ra8+ Kg7 33. Bxe5+ Rxe5 34. c4 Rc1 35. Rc8 Rc5 36. Raa8 R1xc4 37. Rg8+ Kf6 38. Ra6+ Ke7 39. b6 cxb6 40. Rxb6 Rc6 41. Rb7+ Rc7 42. Rxc7+ Rxc7 43. h4 Kf6 44. hxg5+ hxg5 45. g4 Rc5 46. Kg3 Ke6 47. Re8+ Kd5 48. Re1 Rc3+ 49. Kg2 f6 50. Rf1 Rc6 51. Rf5+ Ke4 52. Kg3 Rc3+ 1/2-1/2

[Event "ESP-ch Teams Primera 2022"]
[Site "Sanxenxo Pontevedra"]
[Date "2022.09.17"]
[Round "1.3"]
[White "Gomez Dieguez, David"]
[Black "Ponomariov, Ruslan"]
[Result "0-1"]
[ECO "B56"]
[WhiteElo "2332"]
[BlackElo "2640"]
[Annotator "ChessBase"]
[PlyCount "150"]
[EventDate "2022.09.17"]
[EventType "team-tourn"]
[EventCountry "ESP"]
[SourceTitle "playchess.com"]
[Source "ChessBase"]
[SourceQuality "1"]
[TimeControl "5400+30"]

1. e4 {[%emt 0:00:02]} c5 {[%emt 0:00:15]} 2. Nc3 {[%emt 0:00:05]} Nc6 {[%emt 0:00:30]} 3. Nge2 {[%emt 0:00:04]} d6 {[%emt 0:01:58]} 4. d4 {[%emt 0:00:19]} cxd4 {[%emt 0:00:10]} 5. Nxd4 {[%emt 0:00:04]} Nf6 {[%emt 0:00:11]} 6. g3 {[%emt 0:01:44]} g6 {[%emt 0:02:46]} 7. Bg2 {[%emt 0:00:05]} Bd7 {[%emt 0:00:29]} 8. Nde2 {[%emt 0:07:17]} Bg7 {[%emt 0:00:11]} 9. O-O {[%emt 0:00:08]} h5 {[%emt 0:05:48]} 10. h3 {[%emt 0:08:36]} Qc8 {[%emt 0:01:33]} 11. Kh2 {[%emt 0:00:42]} Ne5 {[%emt 0:04:01]} 12. Nd5 {[%emt 0:14:21]} h4 {[%emt 0:05:11]} 13. g4 {[%emt 0:09:30]} Bxg4 {[%emt 0:01:47]} 14. Nxf6+ {[%emt 0:09:46]} Bxf6 {[%emt 0:00:37]} 15. hxg4 {[%emt 0:01:18]} h3 {[%emt 0:00:50]} 16. Bh1 {[%emt 0:07:39]} Nxg4+ {[%emt 0:00:38]} 17. Kg1 {[%emt 0:00:13]} h2+ {[%emt 0:01:06]} 18. Kg2 {[%emt 0:00:04]} Ne5 {[%emt 0:17:43]} 19. f3 {[%emt 0:00:15]} Qh3+ {[%emt 0:11:16]} 20. Kf2 {[%emt 0:00:04]} Bh4+ {[%emt 0:01:08]} 21. Ke3 {[%emt 0:00:25]} Bg5+ {[%emt 0:03:38]} 22. Kf2 {[%emt 0:01:01]} Bh4+ {[%emt 0:09:18]} 23. Ke3 {[%emt 0:00:06]} Ng4+ {[%emt 0:00:12]} 24. Kd3 {[%emt 0:03:23]} Nf2+ {[%emt 0:00:16]} 25. Rxf2 {[%emt 0:00:06]} Bxf2 {[%emt 0:00:02]} 26. Nf4 {[%emt 0:01:46]} Qg3 {[%emt 0:02:47]} 27. Nd5 {[%emt 0:06:00]} Rc8 {[%emt 0:01:16]} 28. c3 {[%emt 0:00:35]} Qg1 {[%emt 0:03:15]} 29. Be3 {[%emt 0:02:39]} e6 {[%emt 0:03:12]} 30. Nf6+ {[%emt 0:02:16]} Ke7 {[%emt 0:00:13]} 31. Ng4 {[%emt 0:00:03]} Bxe3 {[%emt 0:00:19]} 32. Nxe3 {[%emt 0:00:06]} Qxd1+ {[%emt 0:00:54]} 33. Rxd1 {[%emt 0:00:13]} f5 {[%emt 0:01:06]} 34. Bg2 {[%emt 0:04:45]} Rh4 {[%emt 0:01:46]} 35. Rh1 {[%emt 0:01:37]} Rch8 {[%emt 0:01:34]} 36. Ke2 {[%emt 0:04:05]} R8h5 {[%emt 0:01:45]} 37. Kf2 {[%emt 0:02:53]} Kf6 {[%emt 0:01:16]} 38. Bf1 {[%emt 0:04:08]} fxe4 {[%emt 0:01:41]} 39. Ng2 {[%emt 0:00:07]} Rh3 {[%emt 0:00:47]} 40. Ne1 {[%emt 0:02:08]} e3+ {[%emt 0:01:22]} 41. Kxe3 {[%emt 0:00:19]} R3h4 {[%emt 0:01:36]} 42. Kf2 {[%emt 0:03:36]} Rd5 {[%emt 0:04:24]} 43. Bd3 {[%emt 0:02:15]} Rhh5 {[%emt 0:00:55]} 44. c4 {[%emt 0:02:20]} Ra5 {[%emt 0:01:42]} 45. a3 {[%emt 0:01:05]} d5 {[%emt 0:00:12]} 46. cxd5 {[%emt 0:01:31]} Raxd5 {[%emt 0:00:32]} 47. Ke3 {[%emt 0:00:05]} Rhe5+ {[%emt 0:00:46]} 48. Kd2 {[%emt 0:00:18]} Rd7 {[%emt 0:00:51]} 49. f4 {[%emt 0:00:50]} Rb5 {[%emt 0:03:25]} 50. Rxh2 {[%emt 0:01:45]} Rxb2+ {[%emt 0:00:04]} 51. Nc2 {[%emt 0:00:02]} Rb3 {[%emt 0:01:12]} 52. Rh3 {[%emt 0:00:07]} e5 {[%emt 0:00:30]} 53. fxe5+ {[%emt 0:00:30]} Kxe5 {[%emt 0:00:05]} 54. Rg3 {[%emt 0:00:34]} Kf4 {[%emt 0:00:35]} 55. Re3 {[%emt 0:00:01]} g5 {[%emt 0:00:48]} 56. Ne1 {[%emt 0:00:45]} Rxa3 {[%emt 0:01:13]} 57. Rf3+ {[%emt 0:00:11]} Kg4 {[%emt 0:00:52]} 58. Ke2 {[%emt 0:00:52]} Re7+ {[%emt 0:01:54]} 59. Kf2 {[%emt 0:00:35]} Ra2+ {[%emt 0:00:09]} 60. Nc2 {[%emt 0:00:03]} Kh4 {[%emt 0:00:38]} 61. Kg2 {[%emt 0:01:33]} g4 {[%emt 0:00:40]} 62. Rf8 {[%emt 0:00:16]} Rd7 {[%emt 0:00:58]} 63. Rh8+ {[%emt 0:00:13]} Kg5 {[%emt 0:00:04]} 64. Rg8+ {[%emt 0:00:03]} Kf6 {[%emt 0:01:17]} 65. Rg6+ {[%emt 0:01:39]} Kf7 {[%emt 0:00:30]} 66. Bc4+ {[%emt 0:00:04]} Kxg6 {[%emt 0:00:07]} 67. Bxa2 {[%emt 0:00:02]} Rd2+ {[%emt 0:00:18]} 68. Kf1 {[%emt 0:00:42]} Kg5 {[%emt 0:00:22]} 69. Bb3 {[%emt 0:00:04]} b5 {[%emt 0:00:17]} 70. Ke1 {[%emt 0:00:29]} Rd3 {[%emt 0:00:11]} 71. Be6 {[%emt 0:00:41]} a5 {[%emt 0:00:44]} 72. Ke2 {[%emt 0:00:07]} Rd6 {[%emt 0:00:10]} 73. Bf7 {[%emt 0:00:42]} Rd7 {[%emt 0:00:38]} 74. Ba2 {[%emt 0:00:16]} Kf4 {[%emt 0:00:19]} 75. Ne1 {[%emt 0:00:48]} a4 {[%emt 0:02:07]} 0-1

[Event "ESP-ch Teams Primera 2022"]
[Site "Sanxenxo Pontevedra"]
[Date "2022.09.17"]
[Round "1.4"]
[White "Franco Alonso, Alejandro"]
[Black "Del Prado Rodriguez, Xulio"]
[Result "1-0"]
[ECO "E71"]
[WhiteElo "2432"]
[BlackElo "2281"]
[Annotator "ChessBase"]
[PlyCount "32"]
[EventDate "2022.09.17"]
[EventType "team-tourn"]
[EventCountry "ESP"]
[SourceTitle "playchess.com"]
[Source "ChessBase"]
[SourceQuality "1"]
[TimeControl "5400+30"]

1. d4 Nf6 2. c4 g6 3. Nc3 Bg7 4. e4 d6 5. h3 O-O 6. Be3 e5 7. d5 Na6 8. Bd3 Nd7 9. g4 Ndc5 10. Bc2 f5 11. a3 fxe4 12. Bxe4 Qf6 13. Qc2 Qh4 14. Qd1 Qf6 15. Qc2 Qh4 16. Nf3 Qe7 1-0

[Event "ESP-ch Teams Primera 2022"]
[Site "Sanxenxo Pontevedra"]
[Date "2022.09.17"]
[Round "1.5"]
[White "Gomez Carreno, Martin"]
[Black "Gonzalez De La Torre, Santiago"]
[Result "1/2-1/2"]
[ECO "B23"]
[WhiteElo "2155"]
[BlackElo "2439"]
[Annotator "ChessBase"]
[PlyCount "91"]
[EventDate "2022.09.17"]
[EventType "team-tourn"]
[EventCountry "ESP"]
[SourceTitle "playchess.com"]
[Source "ChessBase"]
[SourceQuality "1"]
[TimeControl "5400+30"]

1. e4 {[%emt 0:00:03]} c5 {[%emt 0:00:09]} 2. Nc3 {[%emt 0:00:08]} a6 {[%emt 0:00:17]} 3. Nf3 {[%emt 0:01:03]} e6 {[%emt 0:00:07]} 4. g3 {[%emt 0:00:12]} b5 {[%emt 0:01:34]} 5. d4 {[%emt 0:00:57]} b4 {[%emt 0:01:58]} 6. Na4 {[%emt 0:04:24]} cxd4 {[%emt 0:01:31]} 7. Nxd4 {[%emt 0:00:16]} Bb7 {[%emt 0:10:05]} 8. Bg2 {[%emt 0:00:09]} Nf6 {[%emt 0:02:16]} 9. O-O {[%emt 0:04:49]} Bxe4 {[%emt 0:00:08]} 10. Bxe4 {[%emt 0:02:09]} Nxe4 {[%emt 0:00:08]} 11. Re1 {[%emt 0:10:29]} Nf6 {[%emt 0:01:16]} 12. Qf3 {[%emt 0:04:05]} d5 {[%emt 0:04:45]} 13. c4 {[%emt 0:03:45]} bxc3 {[%emt 0:06:47]} 14. Nxc3 {[%emt 0:01:40]} Be7 {[%emt 0:00:10]} 15. Bf4 {[%emt 0:05:16]} O-O {[%emt 0:01:01]} 16. Bxb8 {[%emt 0:00:55]} Qxb8 {[%emt 0:13:45]} 17. Nc6 {[%emt 0:00:11]} Qb7 {[%emt 0:00:14]} 18. Nxe7+ {[%emt 0:00:10]} Qxe7 {[%emt 0:00:05]} 19. Nxd5 {[%emt 0:00:13]} Nxd5 {[%emt 0:00:05]} 20. Qxd5 {[%emt 0:00:07]} Rad8 {[%emt 0:00:07]} 21. Qa5 {[%emt 0:02:12]} Rd6 {[%emt 0:05:46]} 22. Rad1 {[%emt 0:05:59]} Rfd8 {[%emt 0:01:08]} 23. Rxd6 {[%emt 0:04:06]} Qxd6 {[%emt 0:06:53]} 24. Rc1 {[%emt 0:03:03]} h6 {[%emt 0:00:28]} 25. h4 {[%emt 0:03:26]} Qd3 {[%emt 0:03:30]} 26. Qc3 {[%emt 0:03:31]} Qf5 {[%emt 0:01:04]} 27. a3 {[%emt 0:12:09]} Kh7 {[%emt 0:03:28]} 28. Re1 {[%emt 0:07:40]} Rd5 {[%emt 0:14:58]} 29. Kg2 {[%emt 0:04:02]} Rd3 {[%emt 0:01:46]} 30. Qc6 {[%emt 0:01:11]} Rd2 {[%emt 0:00:28]} 31. Qb6 {[%emt 0:03:06]} a5 32. b4 {[%emt 0:03:46]} axb4 {[%emt 0:06:58]} 33. axb4 {[%emt 0:00:12]} Qd5+ {[%emt 0:00:09]} 34. Kg1 {[%emt 0:00:16]} Rb2 {[%emt 0:00:06]} 35. Qc7 {[%emt 0:01:43]} Qf3 {[%emt 0:08:28]} 36. Qc5 {[%emt 0:02:42]} e5 {[%emt 0:00:07]} 37. Qe3 {[%emt 0:01:38]} Qxe3 {[%emt 0:02:19]} 38. Rxe3 {[%emt 0:00:03]} f6 {[%emt 0:00:15]} 39. Re4 {[%emt 0:00:20]} h5 {[%emt 0:00:14]} 40. Kg2 {[%emt 0:01:53]} Kg6 {[%emt 0:00:09]} 41. Rc4 {[%emt 0:00:22]} Kf5 {[%emt 0:00:27]} 42. Kf3 {[%emt 0:02:27]} g5 {[%emt 0:00:35]} 43. hxg5 {[%emt 0:01:00]} fxg5 {[%emt 0:00:05]} 44. Ke3 {[%emt 0:00:55]} Rb3+ {[%emt 0:01:38]} 45. Ke2 {[%emt 0:00:09]} Ke6 {[%emt 0:00:16]} 46. Rc6+ {[%emt 0:00:19]} 1/2-1/2

[Event "ESP-ch Teams Primera 2022"]
[Site "Sanxenxo Pontevedra"]
[Date "2022.09.17"]
[Round "1.6"]
[White "Buiza Prieto, Eihartze"]
[Black "Redondo Arguelles, Graciela"]
[Result "1-0"]
[ECO "C03"]
[WhiteElo "2080"]
[BlackElo "1993"]
[Annotator "TA"]
[PlyCount "137"]
[EventDate "2022.09.17"]
[EventType "team-tourn"]
[EventCountry "ESP"]
[SourceTitle "playchess.com"]
[Source "ChessBase"]
[SourceQuality "1"]
[TimeControl "5400+30"]

{[%evp 18,137,42,22,69,69,69,64,75,85,86,78,91,88,101,61,110,77,109,57,57,50,70,41,48,40,61,54,62,62,56,53,58,35,41,35,73,76,104,111,109,105,277,183,225,188,326,235,237,208,231,224,229,206,222,220,345,66,206,111,111,102,245,51,51,32,41,29,68,68,303,343,481,459,457,451,394,386,1118,1112,1005,982,1478,5723,29960,29965,29965,29968,29970,29969,29970,29967,29965,2951,2656,2472,29972,29973,29973,29973,29971,29974,29971,29977,29979,29980,29980,29981,29982,29984,29982,29983,29982,29984,29984,29985,29985,29986,29985,29985,29987,29988]} 1. e4 e6 2. d4 d5 3. Nd2 Be7 4. Ngf3 c5 5. exd5 exd5 6. Bb5+ Nc6 7. dxc5 Bxc5 8. O-O Nge7 9. Nb3 Bd6 10. Bg5 Qc7 {C09: French Tarrasch: 3...c5 4 exd5 exd5 5 Ngf3 Nc6.} (10... a6 $11 11. Bxc6+ bxc6) 11. Bxe7 $14 Bxe7 12. Qxd5 O-O $1 {White is slightly better.} 13. c3 {[#]} Bf6 $146 ({Predecessor:} 13... Be6 14. Qe4 Bf6 15. Rfe1 g6 16. Bd3 Rfe8 17. Qa4 a6 18. Nc5 Bd5 19. Ne4 Bg7 {½-½ (50) Rother,W-Dethloff,K Neudorf 1981}) 14. Qe4 Qb6 15. Bc4 Bd7 16. Rad1 Rad8 (16... Rae8 $14 {was preferrable.} 17. Qc2 Qc7) 17. h3 a5 18. Bd3 {White has more active pieces.} (18. Rd5 $16) 18... g6 {[%cal Oa5a4]} 19. Qe3 Qc7 20. Nc5 Rfe8 21. Qc1 Bc8 22. Ne4 Bg7 {[%cal Od8d3]} 23. Bc2 $36 {[%mdl 2048] White is more active.} Be6 24. Rxd8 Rxd8 25. Bb3 Bxb3 26. axb3 Ne7 27. Rd1 Nf5 28. Rxd8+ Qxd8 29. Qd2 Qb6 (29... Qxd2 $16 30. Nexd2 (30. Nfxd2 b5 $14) 30... b5) 30. Qd5 {Threatens to win with Nfg5.} h6 31. Nfd2 a4 (31... Qc7 {keeps fighting.} 32. Nc4 b6) 32. b4 Qc7 33. g3 a3 34. bxa3 Bxc3 35. Nc4 Bg7 36. Kg2 Qe7 (36... Ne7 $142 37. Qb5 Qc6 38. Qxc6 bxc6) 37. Qd3 $2 (37. b5 $18) 37... Bf8 (37... b5 $14) 38. Ne3 (38. b5 $18) 38... Nxe3+ $16 39. Qxe3 {[%mdl 4096] Endgame KQB-KQN} ({But not} 39. fxe3 $6 Qe6 $11) 39... f5 (39... Qe6 $16) 40. Nd2 $2 (40. Nc5 $18) 40... Qxe3 $14 41. fxe3 {Black must now prevent Nc4. KB-KN} Kf7 42. Kf3 Ke6 43. e4 b5 $2 {Black is on the road to losing.} (43... Ke5 $14) 44. Nb3 $1 $18 Ke5 (44... Bg7 $142 45. Ke3 h5 46. exf5+ gxf5) 45. exf5 gxf5 46. Ke3 $1 Kd5 47. Nd4 Kc4 $2 (47... Bd6 48. Nxf5 Be5) 48. Nxf5 Kb3 49. Nd4+ Kxa3 50. Nxb5+ Kxb4 51. Nd4 Kc4 52. Ke4 Ba3 53. Ne6 Bc1 54. Nf4 Bd2 55. h4 (55. Nd3 $142 h5 56. Nf4 Kc5 57. Nxh5 Be1 58. g4 Kd6 59. Nf4 Ke7 60. g5) 55... Be1 {[#]} 56. Ne2 $1 {Threatening mate with h5.} Bf2 {[#]} 57. h5 $1 {White mates.} Be1 58. Kf5 Kd3 59. Nf4+ Kd4 60. g4 {[%cal Bg3g4,Bg4g5,Bg5g6][%mdl 32]} Bd2 61. Ng6 Bg5 62. Ne5 Ke3 63. Nf7 Bf4 {[#]} 64. Nxh6 $1 {[%mdl 512]} Bxh6 65. g5 Bf8 66. h6 Kf3 67. Kg6 Bc5 68. Kf7 Kg4 69. g6 {Weighted Error Value: White=0.29 (precise) /Black=0.56} 1-0

[Event "ESP-ch Teams Primera 2022"]
[Site "Sanxenxo Pontevedra"]
[Date "2022.09.17"]
[Round "1.7"]
[White "Alsina Leal, Daniel"]
[Black "Reinaldo Castineira, Roi"]
[Result "1/2-1/2"]
[ECO "C11"]
[WhiteElo "2525"]
[BlackElo "2496"]
[Annotator "ChessBase"]
[PlyCount "131"]
[EventDate "2022.09.17"]
[EventType "team-tourn"]
[EventCountry "ESP"]
[SourceTitle "playchess.com"]
[Source "ChessBase"]
[SourceQuality "1"]
[TimeControl "5400+30"]

1. e4 {[%emt 0:00:07]} e6 {[%emt 0:00:43]} 2. d4 {[%emt 0:00:10]} d5 {[%emt 0:00:16]} 3. Nc3 {[%emt 0:00:07]} Nf6 {[%emt 0:01:04]} 4. e5 {[%emt 0:00:10]} Nfd7 {[%emt 0:00:06]} 5. f4 {[%emt 0:00:05]} c5 {[%emt 0:00:09]} 6. Nf3 {[%emt 0:00:06]} Nc6 {[%emt 0:00:24]} 7. Be3 {[%emt 0:00:06]} Rb8 {[%emt 0:07:06]} 8. Be2 {[%emt 0:12:57]} a6 {[%emt 0:10:39]} 9. O-O {[%emt 0:06:21]} b5 {[%emt 0:07:26]} 10. f5 {[%emt 0:19:18]} exf5 11. Nxd5 {[%emt 0:03:51]} Nxd4 {[%emt 0:10:48]} 12. Kh1 {[%emt 0:28:09]} Nb6 {[%emt 0:14:23]} 13. Nxb6 {[%emt 0:04:33]} Qxb6 {[%emt 0:00:07]} 14. Bxd4 {[%emt 0:06:06]} cxd4 {[%emt 0:00:08]} 15. Nxd4 {[%emt 0:00:15]} g6 {[%emt 0:05:55]} 16. Bf3 {[%emt 0:03:10]} Be7 {[%emt 0:02:36]} 17. Nc6 {[%emt 0:06:03]} Rb7 {[%emt 0:00:10]} 18. a4 {[%emt 0:01:47]} Rc7 {[%emt 0:08:26]} 19. axb5 {[%emt 0:01:14]} axb5 {[%emt 0:00:16]} 20. Nxe7 {[%emt 0:01:41]} Rxe7 {[%emt 0:00:17]} 21. Qd6 {[%emt 0:00:52]} Re6 {[%emt 0:01:25]} 22. Qxb6 {[%emt 0:00:11]} Rxb6 {[%emt 0:00:08]} 23. Rfd1 {[%emt 0:00:34]} O-O {[%emt 0:01:19]} 24. Rd6 {[%emt 0:01:25]} Rb8 {[%emt 0:01:54]} 25. h4 {[%emt 0:01:03]} Be6 {[%emt 0:03:43]} 26. h5 {[%emt 0:01:48]} Rfc8 {[%emt 0:03:29]} 27. Rc6 {[%emt 0:00:05]} Kg7 {[%emt 0:02:55]} 28. hxg6 {[%emt 0:01:23]} hxg6 {[%emt 0:00:03]} 29. Ra7 {[%emt 0:00:18]} Kh6 {[%emt 0:02:31]} 30. Kg1 {[%emt 0:01:01]} Kg5 {[%emt 0:01:00]} 31. Ra5 {[%emt 0:00:20]} Kf4 {[%emt 0:02:18]} 32. Rxc8 {[%emt 0:00:40]} Rxc8 {[%emt 0:00:52]} 33. c3 {[%emt 0:00:09]} Bc4 {[%emt 0:06:04]} 34. Kf2 {[%emt 0:00:27]} Kxe5 35. b3 {[%emt 0:00:15]} Bd3 {[%emt 0:01:43]} 36. c4 {[%emt 0:00:04]} Rc5 {[%emt 0:03:41]} 37. Ke3 {[%emt 0:01:29]} Bc2 {[%emt 0:02:08]} 38. Rxb5 {[%emt 0:00:36]} Rxb5 {[%emt 0:02:25]} 39. cxb5 {[%emt 0:00:03]} Bxb3 {[%emt 0:00:14]} 40. b6 {[%emt 0:00:05]} Kd6 {[%emt 0:00:06]} 41. Kd4 {[%emt 0:00:30]} g5 {[%emt 0:00:47]} 42. g3 {[%emt 0:00:50]} f6 {[%emt 0:01:07]} 43. Bg2 {[%emt 0:00:43]} Bd1 {[%emt 0:00:21]} 44. Bh1 {[%emt 0:00:39]} Bb3 {[%emt 0:00:43]} 45. Bg2 {[%emt 0:00:25]} Ba4 {[%emt 0:00:10]} 46. Bh1 {[%emt 0:00:38]} Bb5 {[%emt 0:00:29]} 47. Bg2 {[%emt 0:00:28]} Ba6 {[%emt 0:00:10]} 48. Bh1 {[%emt 0:00:35]} Kd7 {[%emt 0:00:38]} 49. Bd5 {[%emt 0:00:31]} Kd6 {[%emt 0:00:45]} 50. Bg2 {[%emt 0:00:14]} Be2 {[%emt 0:00:22]} 51. Bh1 {[%emt 0:00:48]} Bd1 {[%emt 0:00:05]} 52. Bg2 {[%emt 0:00:11]} Bc2 {[%emt 0:00:03]} 53. Bh1 {[%emt 0:00:17]} Kd7 {[%emt 0:00:15]} 54. Bd5 {[%emt 0:00:34]} Kc8 {[%emt 0:00:28]} 55. Bc6 {[%emt 0:00:31]} Kb8 {[%emt 0:00:22]} 56. Bd5 {[%emt 0:00:26]} Ba4 {[%emt 0:00:37]} 57. Bg2 {[%emt 0:00:38]} Bd7 {[%emt 0:00:11]} 58. Kd5 {[%emt 0:00:55]} Bc8 {[%emt 0:00:59]} 59. Kd6 {[%emt 0:00:23]} f4 {[%emt 0:00:47]} 60. gxf4 {[%emt 0:00:11]} gxf4 {[%emt 0:00:21]} 61. Ke7 {[%emt 0:00:50]} Bb7 {[%emt 0:00:21]} 62. Bh3 {[%emt 0:00:15]} Bc8 {[%emt 0:00:26]} 63. Bg2 {[%emt 0:00:32]} f5 {[%emt 0:00:08]} 64. Kf6 {[%emt 0:00:17]} Bb7 {[%emt 0:00:07]} 65. Kxf5 {[%emt 0:00:13]} Bxg2 {[%emt 0:00:06]} 66. Kxf4 {[%emt 0:00:37]} 1/2-1/2

[Event "ESP-ch Teams Primera 2022"]
[Site "Sanxenxo Pontevedra"]
[Date "2022.09.17"]
[Round "1.8"]
[White "Suarez Gomez, Julio"]
[Black "Lorenzo De La Riva, Lazaro"]
[Result "1/2-1/2"]
[ECO "D35"]
[WhiteElo "2440"]
[BlackElo "2430"]
[Annotator "ChessBase"]
[PlyCount "173"]
[EventDate "2022.09.17"]
[EventType "team-tourn"]
[EventCountry "ESP"]
[SourceTitle "playchess.com"]
[Source "ChessBase"]
[SourceQuality "1"]
[TimeControl "5400+30"]

1. d4 d5 2. c4 e6 3. Nc3 Nf6 4. cxd5 exd5 5. Bg5 h6 6. Bh4 c6 7. e3 Be7 8. Bd3 O-O 9. h3 Ne4 10. Bxe7 Qxe7 11. Qc2 Bf5 12. Nge2 Nd7 13. O-O Ndf6 14. Rae1 Rfe8 15. Nd1 Bh7 16. f3 Nd6 17. Nf4 Rac8 18. b3 Bxd3 19. Qxd3 c5 20. dxc5 Rxc5 21. Ne2 Qe5 22. Nd4 Rec8 23. Nf2 Rc3 24. Qd2 Qg5 25. Nd3 Nf5 26. Nxf5 Qxf5 27. Rc1 Rxc1 28. Rxc1 Rd8 29. Nf4 a6 30. Rc3 Re8 31. Rd3 Re5 32. Rd4 g5 33. Ne2 Qb1+ 34. Kf2 Qf5 35. Qd3 Qc8 36. Nc3 Qc6 37. Qd2 b5 38. Ne2 Re6 39. Nc3 Re5 40. Ne2 Qc8 41. Nc3 Qc5 42. Kg1 a5 43. Nd1 b4 44. Nf2 Qe7 45. Rd3 d4 46. e4 Rc5 47. Rxd4 Qc7 48. Rd8+ Kg7 49. Qd6 Rc1+ 50. Kh2 Qxd6+ 51. Rxd6 Rc2 52. Nd1 Re2 53. h4 Nh5 54. hxg5 hxg5 55. Kh3 Nf4+ 56. Kg4 Rxg2+ 57. Kf5 Ng6 58. Rd3 Rg3 59. e5 g4 60. Ke4 Rg1 61. fxg4 Rxg4+ 62. Ke3 Rg2 63. Nf2 Nxe5 64. Rd5 Nc6 65. Rc5 Rg6 66. Nd3 Re6+ 67. Kf2 Kf8 68. Nb2 Nd4 69. Nc4 Re2+ 70. Kf1 Rxa2 71. Nxa5 Kg7 72. Rd5 Nc2 73. Ke2 Kg6 74. Kd3 f5 75. Nc6 Ne1+ 76. Kc4 f4 77. Kxb4 f3 78. Ne5+ Kf6 79. Nxf3 Nxf3 80. Rd1 Ke5 81. Kc3 Ke4 82. Rd8 Ne5 83. Rd4+ Ke3 84. Rd5 Ke4 85. Rd4+ Ke3 86. Rd8 Nf7 87. Rd1 1/2-1/2

[Event "ESP-ch Teams Primera 2022"]
[Site "Sanxenxo Pontevedra"]
[Date "2022.09.17"]
[Round "1.9"]
[White "Alonso Moyano, Jonathan"]
[Black "Laiz Ibanez, Hector"]
[Result "1-0"]
[ECO "C02"]
[WhiteElo "2348"]
[BlackElo "2327"]
[Annotator "ChessBase"]
[PlyCount "63"]
[EventDate "2022.09.17"]
[EventType "team-tourn"]
[EventCountry "ESP"]
[SourceTitle "playchess.com"]
[Source "ChessBase"]
[SourceQuality "1"]
[TimeControl "5400+30"]

1. e4 {[%emt 0:00:04]} e6 {[%emt 0:00:10]} 2. d4 {[%emt 0:00:10]} d5 {[%emt 0:00:08]} 3. e5 {[%emt 0:00:07]} c5 {[%emt 0:00:18]} 4. c3 {[%emt 0:00:08]} Nc6 {[%emt 0:00:07]} 5. Nf3 {[%emt 0:00:06]} Bd7 {[%emt 0:00:17]} 6. Be2 {[%emt 0:00:12]} Nge7 {[%emt 0:06:14]} 7. O-O {[%emt 0:01:34]} Ng6 {[%emt 0:03:37]} 8. Re1 {[%emt 0:06:09]} Be7 {[%emt 0:02:29]} 9. a3 {[%emt 0:05:00]} cxd4 {[%emt 0:18:06]} 10. cxd4 {[%emt 0:00:21]} Na5 {[%emt 0:00:54]} 11. Nc3 {[%emt 0:08:13]} Rc8 {[%emt 0:02:30]} 12. Bd3 {[%emt 0:01:27]} Qb6 {[%emt 0:08:51]} 13. Rb1 {[%emt 0:05:28]} Nc4 {[%emt 0:09:37]} 14. g3 {[%emt 0:06:59]} Qa5 {[%emt 0:11:02]} 15. Ne2 {[%emt 0:07:13]} Bb5 {[%emt 0:08:02]} 16. h4 {[%emt 0:05:22]} Nf8 {[%emt 0:08:14]} 17. Nf4 {[%emt 0:06:48]} g6 {[%emt 0:02:56]} 18. Bc2 {[%emt 0:05:35]} Qc7 {[%emt 0:00:41]} 19. a4 {[%emt 0:02:51]} Ba6 {[%emt 0:01:26]} 20. Bd3 {[%emt 0:00:48]} Na5 {[%emt 0:01:11]} 21. Re2 {[%emt 0:06:18]} Bxd3 {[%emt 0:00:27]} 22. Nxd3 {[%emt 0:00:14]} Nd7 {[%emt 0:02:54]} 23. Bh6 {[%emt 0:01:49]} Nb8 {[%emt 0:03:00]} 24. b3 {[%emt 0:06:25]} Nbc6 {[%emt 0:01:36]} 25. Qd2 {[%emt 0:00:28]} Qb6 {[%emt 0:01:03]} 26. Qf4 {[%emt 0:04:35]} Nd8 {[%emt 0:05:20]} 27. Nc5 {[%emt 0:03:47]} Nac6 {[%emt 0:01:22]} 28. b4 {[%emt 0:03:42]} a5 {[%emt 0:00:07]} 29. Bg7 {[%emt 0:02:15]} Rg8 {[%emt 0:00:03]} 30. Qh6 {[%emt 0:00:04]} Bf8 {[%emt 0:00:14]} 31. Bxf8 {[%emt 0:00:13]} Rxf8 {[%emt 0:02:27]} 32. Qxf8+ {[%emt 0:00:07]} 1-0